Workbook

Sheet Spreadsheet15.1
B9: Parameters
B10: Mu | C10: 0 | F10: Mu(t) | G10: Sigma(t) | H10: Normal EE | I10: survival | J10: s'(t) | K10: Sigma'(t) | L10: Mu'(t) | M10: Wrong-way EE
B11: Sigma | C11: 0.1 | E11: 1e-07 | F11: =E11*Mu -> 0 | G11: =SQRT(E11)*Sigma -> 3.16227766e-05 | H11: =F11*NORMSDIST(F11/G11)+G11*NORMDIST(F11/G11,0,1,FALSE) -> 1.261566261e-05 | I11: =EXP(-HazardRate*E11) -> 0.999999998 | J11: =NORMSINV(I11) -> 5.884193359 | K11: =SQRT(1-Correlation^2)*G11 -> 3.061862178e-05 | L11: =F11+Correlation*G11*J11 -> 4.651863302e-05 | M11: =L11*NORMSDIST(L11/K11)+K11*NORMDIST(L11/K11,0,1,FALSE) -> 4.737723451e-05
B12: Hazard rate | C12: 0.02 | E12: 0.05 | F12: 0 | G12: 0.02236067977 | H12: =F12*NORMSDIST(F12/G12)+G12*NORMDIST(F12/G12,0,1,FALSE) -> 0.008920620581 | I12: 0.9990004998 | J12: 3.090380787 | K12: 0.02165063509 | L12: 0.01727575379 | M12: 0.01988781159
B13: Correlation | C13: 0.25 | E13: 0.1 | F13: 0 | G13: 0.0316227766 | H13: =F13*NORMSDIST(F13/G13)+G13*NORMDIST(F13/G13,0,1,FALSE) -> 0.01261566261 | I13: 0.9980019987 | J13: 2.87847712 | K13: 0.03061862178 | L13: 0.02275635973 | M13: 0.02681977162
E14: 0.15 | F14: 0 | G14: 0.03872983346 | H14: 0.01545096808 | I14: 0.9970044955 | J14: 2.748273073 | K14: 0.0375 | L14: 0.0266100396 | M14: 0.03188143822
E15: 0.2 | F15: 0 | G15: 0.04472135955 | H15: 0.01784124116 | I15: 0.9960079893 | J15: 2.652744785 | K15: 0.04330127019 | L15: 0.02965858834 | M15: 0.03600481946
E16: 0.25 | F16: 0 | G16: 0.05 | H16: 0.01994711402 | I16: 0.9950124792 | J16: 2.576693294 | K16: 0.04841229183 | L16: 0.03220866618 | M16: 0.03954144285
E17: 0.3 | F17: 0 | G17: 0.05477225575 | H17: 0.02185096861 | I17: 0.9940179641 | J17: 2.513202263 | K17: 0.05303300859 | L17: 0.03441343928 | M17: 0.04266827398
E18: 0.35 | F18: 0 | G18: 0.05916079783 | H18: 0.0236017436 | I18: 0.9930244429 | J18: 2.458519651 | K18: 0.05728219619 | L18: 0.036361996 | M18: 0.04548891069
E19: 0.4 | F19: 0 | G19: 0.0632455532 | H19: 0.02523132522 | I19: 0.9920319148 | J19: 2.410374103 | K19: 0.06123724357 | L19: 0.0381113609 | M19: 0.04807003385
E20: 0.5 | F20: 0 | G20: 0.07071067812 | H20: 0.02820947918 | I20: 0.9900498337 | J20: 2.328221738 | K20: 0.06846531969 | L20: 0.04115753447 | M20: 0.05268429622
E21: 0.6 | F21: 0 | G21: 0.07745966692 | H21: 0.03090193616 | I21: 0.9880717129 | J21: 2.259431219 | K21: 0.075 | L21: 0.04375369742 | M21: 0.05674941671
E22: 0.8 | F22: 0 | G22: 0.0894427191 | H22: 0.03568248232 | I22: 0.9841273201 | J22: 2.147602334 | K22: 0.08660254038 | L22: 0.04802184807 | M22: 0.06373993248
E23: 1 | F23: 0 | G23: 0.1 | H23: 0.03989422804 | I23: 0.9801986733 | J23: 2.057869592 | K23: 0.09682458366 | L23: 0.05144673981 | M23: 0.06967872001
E24: 1.2 | F24: 0 | G24: 0.1095445115 | H24: 0.04370193722 | I24: 0.9762857098 | J24: 1.982452841 | K24: 0.1060660172 | L24: 0.05429170702 | M24: 0.07488546856
E25: 1.4 | F25: 0 | G25: 0.1183215957 | H25: 0.04720348719 | I25: 0.9723883668 | J25: 1.917115449 | K25: 0.1145643924 | L25: 0.05670903974 | M25: 0.07954682762
E26: 1.6 | F26: 0 | G26: 0.1264911064 | H26: 0.05046265044 | I26: 0.9685065821 | J26: 1.859284408 | K26: 0.1224744871 | L26: 0.05879573548 | M26: 0.08378266025
E27: 1.8 | F27: 0 | G27: 0.1341640786 | H27: 0.05352372348 | I27: 0.9646402935 | J27: 1.807274993 | K27: 0.1299038106 | L27: 0.06061784609 | M27: 0.08767518661
E28: 2 | F28: 0 | G28: 0.1414213562 | H28: 0.05641895835 | I28: 0.9607894392 | J28: 1.759921475 | K28: 0.1369306394 | L28: 0.06222262045 | M28: 0.09128361061
E29: 2.2 | F29: 0 | G29: 0.1483239697 | H29: 0.05917270273 | I29: 0.9569539575 | J29: 1.716382349 | K29: 0.1436140662 | L29: 0.06364516089 | M29: 0.09465218303
E30: 2.4 | F30: 0 | G30: 0.1549193338 | H30: 0.06180387232 | I30: 0.9531337871 | J30: 1.676029442 | K30: 0.15 | L30: 0.06491234116 | M30: 0.09781497173
E31: 2.6 | F31: 0 | G31: 0.161245155 | H31: 0.06432750983 | I31: 0.9493288668 | J31: 1.638380874 | K31: 0.15612495 | L31: 0.06604524449 | M31: 0.100798844
E32: 2.8 | F32: 0 | G32: 0.1673320053 | H32: 0.06675581178 | I32: 0.9455391359 | J32: 1.60305855 | K32: 0.1620185175 | L32: 0.06706075043 | M32: 0.1036254159
E33: 3 | F33: 0 | G33: 0.1732050808 | H33: 0.06909882989 | I33: 0.9417645336 | J33: 1.569760102 | K33: 0.1677050983 | L33: 0.06797260632 | M33: 0.1063123743
E34: 3.2 | F34: 0 | G34: 0.1788854382 | H34: 0.07136496465 | I34: 0.9380049995 | J34: 1.538239767 | K34: 0.1732050808 | L34: 0.06879217371 | M34: 0.1088744009
E35: 3.4 | F35: 0 | G35: 0.1843908891 | H35: 0.0735613218 | I35: 0.9342604736 | J35: 1.508294959 | K35: 0.1785357107 | L35: 0.06952896214 | M35: 0.1113238357
E36: 3.6 | F36: 0 | G36: 0.1897366596 | H36: 0.07569397566 | I36: 0.9305308958 | J36: 1.479756624 | K36: 0.1837117307 | L36: 0.0701910197 | M36: 0.1136711642
E37: 3.8 | F37: 0 | G37: 0.1949358869 | H37: 0.07776816725 | I37: 0.9268162066 | J37: 1.452482157 | K37: 0.1887458609 | L37: 0.07078522438 | M37: 0.1159253818
E38: 4 | F38: 0 | G38: 0.2 | H38: 0.07978845608 | I38: 0.9231163464 | J38: 1.426350109 | K38: 0.1936491673 | L38: 0.07131750545 | M38: 0.1180942714
E39: 4.2 | F39: 0 | G39: 0.2049390153 | H39: 0.08175883811 | I39: 0.9194312561 | J39: 1.401256153 | K39: 0.1984313483 | L39: 0.07179301407 | M39: 0.120184619
E40: 4.4 | F40: 0 | G40: 0.2097617696 | H40: 0.08368283872 | I40: 0.9157608767 | J40: 1.377109983 | K40: 0.2031009601 | L40: 0.07221625678 | M40: 0.1222023813
E41: 4.6 | F41: 0 | G41: 0.2144761059 | H41: 0.08556358678 | I41: 0.9121051495 | J41: 1.353832881 | K41: 0.2076655966 | L41: 0.07259120107 | M41: 0.12415282
E42: 4.8 | F42: 0 | G42: 0.219089023 | H42: 0.08740387445 | I42: 0.9084640161 | J42: 1.331355794 | K42: 0.2121320344 | L42: 0.07292136002 | M42: 0.1260406089
E43: 5 | F43: =E43*Mu -> 0 | G43: =SQRT(E43)*Sigma -> 0.2236067977 | H43: 0.08920620581 | I43: =EXP(-HazardRate*E43) -> 0.904837418 | J43: 1.309617799 | K43: =SQRT(1-Correlation^2)*G43 -> 0.2165063509 | L43: =F43+Correlation*G43*J43 -> 0.0732098606 | M43: 0.1278699212
E44: 5.2 | F44: 0 | G44: 0.228035085 | H44: 0.09097283683 | I44: 0.9012252974 | J44: 1.288564864 | K44: 0.2207940217 | L44: 0.07345949957 | M44: 0.1296445005
E45: 5.4 | F45: 0 | G45: 0.2323790008 | H45: 0.09270580849 | I45: 0.8976275964 | J45: 1.268148828 | K45: 0.225 | L45: 0.07367278938 | M45: 0.1313677198
E46: 5.6 | F46: 0 | G46: 0.2366431913 | H46: 0.09440697439 | I46: 0.8940442575 | J46: 1.248326578 | K46: 0.2291287847 | L46: 0.07385199628 | M46: 0.1330426299
E47: 5.8 | F47: 0 | G47: 0.2408318916 | H47: 0.09607802402 | I47: 0.8904752233 | J47: 1.229059353 | K47: 0.2331844763 | L47: 0.07399917223 | M47: 0.1346720011
E48: 6 | F48: 0 | G48: 0.2449489743 | H48: 0.09772050238 | I48: 0.8869204367 | J48: 1.210312178 | K48: 0.2371708245 | L48: 0.07411618162 | M48: 0.1362583571
E49: 6.2 | F49: 0 | G49: 0.248997992 | H49: 0.09933582673 | I49: 0.8833798409 | J49: 1.192053373 | K49: 0.241091269 | L49: 0.07420472402 | M49: 0.1378040045
E50: 6.4 | F50: 0 | G50: 0.2529822128 | H50: 0.1009253009 | I50: 0.8798533791 | J50: 1.174254152 | K50: 0.2449489743 | L50: 0.07426635341 | M50: 0.1393110578
E51: 6.6 | F51: 0 | G51: 0.2569046516 | H51: 0.1024901275 | I51: 0.8763409951 | J51: 1.156888275 | K51: 0.2487468593 | L51: 0.07430249478 | M51: 0.1407814608
E52: 6.8 | F52: 0 | G52: 0.2607680962 | H52: 0.104031419 | I52: 0.8728426325 | J52: 1.139931753 | K52: 0.2524876235 | L52: 0.07431445825 | M52: 0.142217005
E53: 7 | F53: 0 | G53: 0.2645751311 | H53: 0.1055502061 | I53: 0.8693582354 | J53: 1.123362595 | K53: 0.2561737691 | L53: 0.07430345146 | M53: 0.1436193457
E54: 7.2 | F54: 0 | G54: 0.2683281573 | H54: 0.107047447 | I54: 0.8658877481 | J54: 1.107160588 | K54: 0.2598076211 | L54: 0.07427059012 | M54: 0.1449900159
E55: 7.4 | F55: 0 | G55: 0.2720294102 | H55: 0.1085240332 | I55: 0.8624311149 | J55: 1.09130711 | K55: 0.2633913438 | L55: 0.07421690738 | M55: 0.1463304383
E56: 7.6 | F56: 0 | G56: 0.275680975 | H56: 0.1099807968 | I56: 0.8589882807 | J56: 1.075784964 | K56: 0.2669269563 | L56: 0.07414336193 | M56: 0.147641936
E57: 7.8 | F57: 0 | G57: 0.2792848009 | H57: 0.1114185153 | I57: 0.8555591904 | J57: 1.060578233 | K57: 0.2704163457 | L57: 0.07405084512 | M57: 0.148925742
E58: 8 | F58: 0 | G58: 0.2828427125 | H58: 0.1128379167 | I58: 0.852143789 | J58: 1.045672157 | K58: 0.2738612788 | L58: 0.07394018731 | M58: 0.1501830073
E59: 8.2 | F59: 0 | G59: 0.2863564213 | H59: 0.1142396837 | I59: 0.8487420219 | J59: 1.031053022 | K59: 0.2772634127 | L59: 0.07381216336 | M59: 0.1514148085
E60: 8.4 | F60: 0 | G60: 0.2898275349 | H60: 0.1156244577 | I60: 0.8453538347 | J60: 1.016708059 | K60: 0.280624304 | L60: 0.07366749765 | M60: 0.1526221538
E61: 8.6 | F61: =E61*Mu -> 0 | G61: =SQRT(E61)*Sigma -> 0.293257566 | H61: =F61*NORMSDIST(F61/G61)+G61*NORMDIST(F61/G61,0,1,FALSE) -> 0.1169928421 | I61: =EXP(-HazardRate*E61) -> 0.8419791732 | J61: =NORMSINV(I61) -> 1.002625363 | K61: =SQRT(1-Correlation^2)*G61 -> 0.2839454173 | L61: =F61+Correlation*G61*J61 -> 0.07350686839 | M61: =L61*NORMSDIST(L61/K61)+K61*NORMDIST(L61/K61,0,1,FALSE) -> 0.1538059893
E62: 8.8 | F62: 0 | G62: 0.2966479395 | H62: 0.1183454055 | I62: 0.8386179833 | J62: 0.9887938102 | K62: 0.2872281323 | L62: 0.07333091159 | M62: 0.154967204
E63: 9 | F63: 0 | G63: 0.3 | H63: 0.1196826841 | I63: 0.8352702114 | J63: 0.9752029942 | K63: 0.290473751 | L63: 0.07314022457 | M63: 0.1561066346
E64: 9.2 | F64: 0 | G64: 0.3033150178 | H64: 0.1210051849 | I64: 0.8319358038 | J64: 0.9618431635 | K64: 0.2936835031 | L64: 0.07293536906 | M64: 0.1572250691
E65: 9.4 | F65: 0 | G65: 0.3065941943 | H65: 0.122313387 | I65: 0.8286147072 | J65: 0.9487051666 | K65: 0.2968585522 | L65: 0.07271687406 | M65: 0.1583232514
E66: 9.6 | F66: 0 | G66: 0.3098386677 | H66: 0.1236077446 | I66: 0.8253068685 | J66: 0.9357804038 | K66: 0.3 | L66: 0.07248523839 | M66: 0.1594018841
E67: 9.8 | F67: 0 | G67: 0.3130495168 | H67: 0.1248886881 | I67: 0.8220122347 | J67: 0.9230607823 | K67: 0.3031088913 | L67: 0.07224093298 | M67: 0.1604616318
E68: 10 | F68: 0 | G68: 0.316227766 | H68: 0.1261566261 | I68: 0.8187307531 | J68: 0.9105386774 | K68: 0.3061862178 | L68: 0.07198440296 | M68: 0.1615031238

Sheet Spreadsheet15.2
B9: Parameters | E9: Calculations
B10: S | C10: 100 | E10: Forward | F10: =C10*EXP(C14*C13) -> 105.1271096
B11: K | C11: 100 | E11: d1 | F11: =(LN(Spot/Strike)+(IntRate+Vol^2/2)*Maturity)/(Vol*SQRT(Maturity)) -> 0.325
B12: sigma | C12: 0.25 | E12: d2 | F12: =(LN(F10/C11)-C12^2/2*C13)/(C12*SQRT(C13)) -> 0.075
B13: T | C13: 1 | E13: Def prob | F13: =1-EXP(-C17*C13) -> 0.09516258196
B14: r | C14: 0.05 | E14: Threshold | F14: =NORMSINV(F13) -> -1.309617799
B16: Correl | C16: 0.25 | F16: Call | G16: Put
B17: Hazard rate | C17: 0.1 | E17: Risk-free | F17: =Spot*NORMSDIST(F11)-Strike*EXP(-IntRate*Maturity)*NORMSDIST(_nd2) -> 12.33599893 | G17: =-Spot*NORMSDIST(-F11)+Strike*EXP(-IntRate*Maturity)*NORMSDIST(-_nd2) -> 7.45894138
E18: Risky discounted | F18: =F17*EXP(-HazardRate*Maturity) -> 11.16207342 | G18: =G17*EXP(-HazardRate*Maturity) -> 6.74912926
E19: Risky | F19: =EXP(-IntRate*Maturity)*(+Fwd*C43-Strike*C44) -> 12.29869299 | G19: =EXP(-IntRate*Maturity)*(-Fwd*D43+Strike*D44) -> 6.305561452
B33: Quadrature calculations
C34: 1 | D34: 2 | E34: 3 | F34: 4 | G34: 5 | H34: 6 | I34: 7 | J34: 8 | K34: 9 | L34: 10 | M34: 11 | N34: 12 | O34: 13 | P34: 14 | Q34: 15 | R34: 16 | S34: 17 | T34: 18 | U34: 19 | V34: 20 | W34: 21 | X34: 22 | Y34: 23 | Z34: 24 | AA34: 25 | AB34: 26 | AC34: 27 | AD34: 28 | AE34: 29 | AF34: 30 | AG34: 31 | AH34: 32 | AI34: 33 | AJ34: 34 | AK34: 35 | AL34: 36 | AM34: 37 | AN34: 38 | AO34: 39 | AP34: 40 | AQ34: 41 | AR34: 42 | AS34: 43 | AT34: 44 | AU34: 45 | AV34: 46 | AW34: 47 | AX34: 48 | AY34: 49 | AZ34: 50 | BA34: 51 | BB34: 52 | BC34: 53 | BD34: 54 | BE34: 55 | BF34: 56 | BG34: 57 | BH34: 58 | BI34: 59 | BJ34: 60 | BK34: 61 | BL34: 62 | BM34: 63 | BN34: 64 | BO34: 65 | BP34: 66 | BQ34: 67 | BR34: 68 | BS34: 69 | BT34: 70 | BU34: 71 | BV34: 72 | BW34: 73 | BX34: 74 | BY34: 75 | BZ34: 76 | CA34: 77 | CB34: 78 | CC34: 79 | CD34: 80 | CE34: 81 | CF34: 82 | CG34: 83 | CH34: 84 | CI34: 85 | CJ34: 86 | CK34: 87 | CL34: 88 | CM34: 89 | CN34: 90 | CO34: 91 | CP34: 92 | CQ34: 93 | CR34: 94 | CS34: 95 | CT34: 96 | CU34: 97 | CV34: 98 | CW34: 99 | CX34: 100 | CY34: 101 | CZ34: 102 | DA34: 103 | DB34: 104 | DC34: 105 | DD34: 106 | DE34: 107 | DF34: 108 | DG34: 109 | DH34: 110 | DI34: 111 | DJ34: 112 | DK34: 113 | DL34: 114 | DM34: 115 | DN34: 116 | DO34: 117 | DP34: 118 | DQ34: 119 | DR34: 120 | DS34: 121 | DT34: 122 | DU34: 123 | DV34: 124 | DW34: 125 | DX34: 126 | DY34: 127 | DZ34: 128 | EA34: 129 | EB34: 130 | EC34: 131 | ED34: 132 | EE34: 133 | EF34: 134 | EG34: 135 | EH34: 136 | EI34: 137 | EJ34: 138 | EK34: 139 | EL34: 140 | EM34: 141 | EN34: 142 | EO34: 143 | EP34: 144 | EQ34: 145 | ER34: 146 | ES34: 147 | ET34: 148 | EU34: 149 | EV34: 150 | EW34: 151 | EX34: 152 | EY34: 153 | EZ34: 154 | FA34: 155 | FB34: 156 | FC34: 157 | FD34: 158 | FE34: 159 | FF34: 160 | FG34: 161 | FH34: 162 | FI34: 163 | FJ34: 164 | FK34: 165 | FL34: 166 | FM34: 167 | FN34: 168 | FO34: 169 | FP34: 170 | FQ34: 171 | FR34: 172 | FS34: 173 | FT34: 174 | FU34: 175 | FV34: 176 | FW34: 177 | FX34: 178 | FY34: 179 | FZ34: 180 | GA34: 181 | GB34: 182 | GC34: 183 | GD34: 184 | GE34: 185 | GF34: 186 | GG34: 187 | GH34: 188 | GI34: 189 | GJ34: 190 | GK34: 191 | GL34: 192 | GM34: 193 | GN34: 194 | GO34: 195 | GP34: 196 | GQ34: 197 | GR34: 198 | GS34: 199 | GT34: 200 | GU34: 201 | GV34: 202 | GW34: 203 | GX34: 204 | GY34: 205 | GZ34: 206 | HA34: 207 | HB34: 208 | HC34: 209 | HD34: 210 | HE34: 211 | HF34: 212 | HG34: 213 | HH34: 214 | HI34: 215 | HJ34: 216 | HK34: 217 | HL34: 218 | HM34: 219 | HN34: 220 | HO34: 221 | HP34: 222 | HQ34: 223 | HR34: 224 | HS34: 225 | HT34: 226 | HU34: 227 | HV34: 228 | HW34: 229 | HX34: 230 | HY34: 231 | HZ34: 232 | IA34: 233 | IB34: 234 | IC34: 235 | ID34: 236 | IE34: 237 | IF34: 238 | IG34: 239 | IH34: 240 | II34: 241 | IJ34: 242 | IK34: 243 | IL34: 244 | IM34: 245 | IN34: 246 | IO34: 247 | IP34: 248 | IQ34: 249 | IR34: 250
C35: -6.999677436 | D35: -6.998300485 | E35: -6.995823473 | F35: -6.992246238 | G35: -6.987569276 | H35: -6.981793306 | I35: -6.974919231 | J35: -6.96694813 | K35: -6.957881257 | L35: -6.947720036 | M35: -6.936466065 | N35: -6.924121114 | O35: -6.910687125 | P35: -6.896166211 | Q35: -6.880560655 | R35: -6.863872912 | S35: -6.846105606 | T35: -6.827261533 | U35: -6.807343655 | V35: -6.786355105 | W35: -6.764299185 | X35: -6.741179364 | Y35: -6.716999278 | Z35: -6.691762729 | AA35: -6.665473688 | AB35: -6.638136289 | AC35: -6.609754832 | AD35: -6.58033378 | AE35: -6.549877761 | AF35: -6.518391565 | AG35: -6.485880145 | AH35: -6.452348613 | AI35: -6.417802245 | AJ35: -6.382246472 | AK35: -6.345686888 | AL35: -6.308129243 | AM35: -6.269579443 | AN35: -6.230043552 | AO35: -6.189527789 | AP35: -6.148038525 | AQ35: -6.105582287 | AR35: -6.062165751 | AS35: -6.017795747 | AT35: -5.972479252 | AU35: -5.926223395 | AV35: -5.879035451 | AW35: -5.830922841 | AX35: -5.781893133 | AY35: -5.731954038 | AZ35: -5.681113411 | BA35: -5.629379248 | BB35: -5.576759685 | BC35: -5.523263 | BD35: -5.468897605 | BE35: -5.413672053 | BF35: -5.357595028 | BG35: -5.30067535 | BH35: -5.242921973 | BI35: -5.184343979 | BJ35: -5.124950582 | BK35: -5.064751123 | BL35: -5.003755071 | BM35: -4.941972019 | BN35: -4.879411684 | BO35: -4.816083907 | BP35: -4.751998647 | BQ35: -4.687165984 | BR35: -4.621596115 | BS35: -4.555299353 | BT35: -4.488286125 | BU35: -4.420566971 | BV35: -4.352152542 | BW35: -4.283053598 | BX35: -4.213281008 | BY35: -4.142845745 | BZ35: -4.071758888 | CA35: -4.000031617 | CB35: -3.927675214 | CC35: -3.854701059 | CD35: -3.781120629 | CE35: -3.706945498 | CF35: -3.632187331 | CG35: -3.556857887 | CH35: -3.480969015 | CI35: -3.404532648 | CJ35: -3.327560811 | CK35: -3.250065609 | CL35: -3.172059231 | CM35: -3.093553945 | CN35: -3.014562099 | CO35: -2.935096117 | CP35: -2.855168499 | CQ35: -2.774791814 | CR35: -2.693978704 | CS35: -2.612741881 | CT35: -2.53109412 | CU35: -2.449048265 | CV35: -2.366617219 | CW35: -2.283813947 | CX35: -2.200651472 | CY35: -2.117142875 | CZ35: -2.03330129 | DA35: -1.949139903 | DB35: -1.864671952 | DC35: -1.779910722 | DD35: -1.694869544 | DE35: -1.609561795 | DF35: -1.52400089 | DG35: -1.438200288 | DH35: -1.352173482 | DI35: -1.265934005 | DJ35: -1.179495419 | DK35: -1.09287132 | DL35: -1.006075332 | DM35: -0.9191211065 | DN35: -0.8320223201 | DO35: -0.7447926716 | DP35: -0.6574458809 | DQ35: -0.5699956858 | DR35: -0.4824558407 | DS35: -0.3948401141 | DT35: -0.3071622863 | DU35: -0.2194361475 | DV35: -0.1316754954 | DW35: -0.04389413303 | DX35: 0.04389413303 | DY35: 0.1316754954 | DZ35: 0.2194361475 | EA35: 0.3071622863 | EB35: 0.3948401141 | EC35: 0.4824558407 | ED35: 0.5699956858 | EE35: 0.6574458809 | EF35: 0.7447926716 | EG35: 0.8320223201 | EH35: 0.9191211065 | EI35: 1.006075332 | EJ35: 1.09287132 | EK35: 1.179495419 | EL35: 1.265934005 | EM35: 1.352173482 | EN35: 1.438200288 | EO35: 1.52400089 | EP35: 1.609561795 | EQ35: 1.694869544 | ER35: 1.779910722 | ES35: 1.864671952 | ET35: 1.949139903 | EU35: 2.03330129 | EV35: 2.117142875 | EW35: 2.200651472 | EX35: 2.283813947 | EY35: 2.366617219 | EZ35: 2.449048265 | FA35: 2.53109412 | FB35: 2.612741881 | FC35: 2.693978704 | FD35: 2.774791814 | FE35: 2.855168499 | FF35: 2.935096117 | FG35: 3.014562099 | FH35: 3.093553945 | FI35: 3.172059231 | FJ35: 3.250065609 | FK35: 3.327560811 | FL35: 3.404532648 | FM35: 3.480969015 | FN35: 3.556857887 | FO35: 3.632187331 | FP35: 3.706945498 | FQ35: 3.781120629 | FR35: 3.854701059 | FS35: 3.927675214 | FT35: 4.000031617 | FU35: 4.071758888 | FV35: 4.142845745 | FW35: 4.213281008 | FX35: 4.283053598 | FY35: 4.352152542 | FZ35: 4.420566971 | GA35: 4.488286125 | GB35: 4.555299353 | GC35: 4.621596115 | GD35: 4.687165984 | GE35: 4.751998647 | GF35: 4.816083907 | GG35: 4.879411684 | GH35: 4.941972019 | GI35: 5.003755071 | GJ35: 5.064751123 | GK35: 5.124950582 | GL35: 5.184343979 | GM35: 5.242921973 | GN35: 5.30067535 | GO35: 5.357595028 | GP35: 5.413672053 | GQ35: 5.468897605 | GR35: 5.523263 | GS35: 5.576759685 | GT35: 5.629379248 | GU35: 5.681113411 | GV35: 5.731954038 | GW35: 5.781893133 | GX35: 5.830922841 | GY35: 5.879035451 | GZ35: 5.926223395 | HA35: 5.972479252 | HB35: 6.017795747 | HC35: 6.062165751 | HD35: 6.105582287 | HE35: 6.148038525 | HF35: 6.189527789 | HG35: 6.230043552 | HH35: 6.269579443 | HI35: 6.308129243 | HJ35: 6.345686888 | HK35: 6.382246472 | HL35: 6.417802245 | HM35: 6.452348613 | HN35: 6.485880145 | HO35: 6.518391565 | HP35: 6.549877761 | HQ35: 6.58033378 | HR35: 6.609754832 | HS35: 6.638136289 | HT35: 6.665473688 | HU35: 6.691762729 | HV35: 6.716999278 | HW35: 6.741179364 | HX35: 6.764299185 | HY35: 6.786355105 | HZ35: 6.807343655 | IA35: 6.827261533 | IB35: 6.846105606 | IC35: 6.863872912 | ID35: 6.880560655 | IE35: 6.896166211 | IF35: 6.910687125 | IG35: 6.924121114 | IH35: 6.936466065 | II35: 6.947720036 | IJ35: 6.957881257 | IK35: 6.96694813 | IL35: 6.974919231 | IM35: 6.981793306 | IN35: 6.987569276 | IO35: 6.992246238 | IP35: 6.995823473 | IQ35: 6.998300485 | IR35: 6.999677436
C36: 7.578781456e-15 | D36: 1.781164556e-14 | E36: 2.847258717e-14 | F36: 3.980245712e-14 | G36: 5.208003727e-14 | H36: 6.562150201e-14 | I36: 8.079276079e-14 | J36: 9.802505459e-14 | K36: 1.178341701e-13 | L36: 1.408443448e-13 | M36: 1.678183075e-13 | N36: 1.996953341e-13 | O36: 2.376397706e-13 | P36: 2.83103232e-13 | Q36: 3.379046995e-13 | R36: 4.043340814e-13 | S36: 4.852866388e-13 | T36: 5.844380159e-13 | U36: 7.064730058e-13 | V36: 8.573854253e-13 | W36: 1.044872471e-12 | X36: 1.278854899e-12 | Y36: 1.572165218e-12 | Z36: 1.94146082e-12 | AA36: 2.408439015e-12 | AB36: 3.001458287e-12 | AC36: 3.75770747e-12 | AD36: 4.726115642e-12 | AE36: 5.97126574e-12 | AF36: 7.578671123e-12 | AG36: 9.661906854e-12 | AH36: 1.237226984e-11 | AI36: 1.591189357e-11 | AJ36: 2.05515905e-11 | AK36: 2.665517509e-11 | AL36: 3.471268419e-11 | AM36: 4.538583072e-11 | AN36: 5.957029872e-11 | AO36: 7.848125158e-11 | AP36: 1.037708693e-10 | AQ36: 1.376901182e-10 | AR36: 1.833116535e-10 | AS36: 2.448372627e-10 | AT36: 3.280222735e-10 | AU36: 4.407618343e-10 | AV36: 5.939012415e-10 | AW36: 8.023563583e-10 | AX36: 1.086663114e-09 | AY36: 1.475120494e-09 | AZ36: 2.006753938e-09 | BA36: 2.735411926e-09 | BB36: 3.735426251e-09 | BC36: 5.109427426e-09 | BD36: 6.999126258e-09 | BE36: 9.600171181e-09 | BF36: 1.318259574e-08 | BG36: 1.81189174e-08 | BH36: 2.492268469e-08 | BI36: 3.430125555e-08 | BJ36: 4.722790528e-08 | BK36: 6.504010785e-08 | BL36: 8.957313953e-08 | BM36: 1.233411785e-07 | BN36: 1.697820194e-07 | BO36: 2.335866332e-07 | BP36: 3.211413701e-07 | BQ36: 4.411189836e-07 | BR36: 6.052652402e-07 | BS36: 8.29441126e-07 | BT36: 1.134997067e-06 | BU36: 1.550575635e-06 | BV36: 2.114463409e-06 | BW36: 2.877641412e-06 | BX36: 3.907717084e-06 | BY36: 5.293959076e-06 | BZ36: 7.153698805e-06 | CA36: 9.640408765e-06 | CB36: 1.29538151e-05 | CC36: 1.735244824e-05 | CD36: 2.316907621e-05 | CE36: 3.082949491e-05 | CF36: 4.087516097e-05 | CG36: 5.39901359e-05 | CH36: 7.103275468e-05 | CI36: 9.307232384e-05 | CJ36: 0.0001214309805 | CK36: 0.000157730589 | CL36: 0.0002039442022 | CM36: 0.0002624511633 | CN36: 0.0003360943549 | CO36: 0.0004282374313 | CP36: 0.0005428190974 | CQ36: 0.0006844006514 | CR36: 0.0008582021393 | CS36: 0.001070121621 | CT36: 0.001326731316 | CU36: 0.001635243859 | CV36: 0.002003441692 | CW36: 0.00243956282 | CX36: 0.002952136925 | CY36: 0.003549767262 | CZ36: 0.004240855858 | DA36: 0.00503327244 | DB36: 0.005933971105 | DC36: 0.00694856292 | DD36: 0.00808085725 | DE36: 0.009332389341 | DF36: 0.01070195618 | DG36: 0.01218518653 | DH36: 0.01377417376 | DI36: 0.01545720139 | DJ36: 0.0172185906 | DK36: 0.019038696 | DL36: 0.02089407082 | DM36: 0.02275781526 | DN36: 0.02460011226 | DO36: 0.02638894391 | DP36: 0.02809097013 | DQ36: 0.02967253938 | DR36: 0.03110079063 | DS36: 0.03234479672 | DT36: 0.03337669359 | DU36: 0.03417273705 | DV36: 0.03471423021 | DW36: 0.03498826992 | DX36: 0.03498826992 | DY36: 0.03471423021 | DZ36: 0.03417273705 | EA36: 0.03337669359 | EB36: 0.03234479672 | EC36: 0.03110079063 | ED36: 0.02967253938 | EE36: 0.02809097013 | EF36: 0.02638894391 | EG36: 0.02460011226 | EH36: 0.02275781526 | EI36: 0.02089407082 | EJ36: 0.019038696 | EK36: 0.0172185906 | EL36: 0.01545720139 | EM36: 0.01377417376 | EN36: 0.01218518653 | EO36: 0.01070195618 | EP36: 0.009332389341 | EQ36: 0.00808085725 | ER36: 0.00694856292 | ES36: 0.005933971105 | ET36: 0.00503327244 | EU36: 0.004240855858 | EV36: 0.003549767262 | EW36: 0.002952136925 | EX36: 0.00243956282 | EY36: 0.002003441692 | EZ36: 0.001635243859 | FA36: 0.001326731316 | FB36: 0.001070121621 | FC36: 0.0008582021393 | FD36: 0.0006844006514 | FE36: 0.0005428190974 | FF36: 0.0004282374313 | FG36: 0.0003360943549 | FH36: 0.0002624511633 | FI36: 0.0002039442022 | FJ36: 0.000157730589 | FK36: 0.0001214309805 | FL36: 9.307232384e-05 | FM36: 7.103275468e-05 | FN36: 5.39901359e-05 | FO36: 4.087516097e-05 | FP36: 3.082949491e-05 | FQ36: 2.316907621e-05 | FR36: 1.735244824e-05 | FS36: 1.29538151e-05 | FT36: 9.640408765e-06 | FU36: 7.153698805e-06 | FV36: 5.293959076e-06 | FW36: 3.907717084e-06 | FX36: 2.877641412e-06 | FY36: 2.114463409e-06 | FZ36: 1.550575635e-06 | GA36: 1.134997067e-06 | GB36: 8.29441126e-07 | GC36: 6.052652402e-07 | GD36: 4.411189836e-07 | GE36: 3.211413701e-07 | GF36: 2.335866332e-07 | GG36: 1.697820194e-07 | GH36: 1.233411785e-07 | GI36: 8.957313953e-08 | GJ36: 6.504010785e-08 | GK36: 4.722790528e-08 | GL36: 3.430125555e-08 | GM36: 2.492268469e-08 | GN36: 1.81189174e-08 | GO36: 1.318259574e-08 | GP36: 9.600171181e-09 | GQ36: 6.999126258e-09 | GR36: 5.109427426e-09 | GS36: 3.735426251e-09 | GT36: 2.735411926e-09 | GU36: 2.006753938e-09 | GV36: 1.475120494e-09 | GW36: 1.086663114e-09 | GX36: 8.023563583e-10 | GY36: 5.939012415e-10 | GZ36: 4.407618343e-10 | HA36: 3.280222735e-10 | HB36: 2.448372627e-10 | HC36: 1.833116535e-10 | HD36: 1.376901182e-10 | HE36: 1.037708693e-10 | HF36: 7.848125158e-11 | HG36: 5.957029872e-11 | HH36: 4.538583072e-11 | HI36: 3.471268419e-11 | HJ36: 2.665517509e-11 | HK36: 2.05515905e-11 | HL36: 1.591189357e-11 | HM36: 1.237226984e-11 | HN36: 9.661906854e-12 | HO36: 7.578671123e-12 | HP36: 5.97126574e-12 | HQ36: 4.726115642e-12 | HR36: 3.75770747e-12 | HS36: 3.001458287e-12 | HT36: 2.408439015e-12 | HU36: 1.94146082e-12 | HV36: 1.572165218e-12 | HW36: 1.278854899e-12 | HX36: 1.044872471e-12 | HY36: 8.573854253e-13 | HZ36: 7.064730058e-13 | IA36: 5.844380159e-13 | IB36: 4.852866388e-13 | IC36: 4.043340814e-13 | ID36: 3.379046995e-13 | IE36: 2.83103232e-13 | IF36: 2.376397706e-13 | IG36: 1.996953341e-13 | IH36: 1.678183075e-13 | II36: 1.408443448e-13 | IJ36: 1.178341701e-13 | IK36: 9.802505459e-14 | IL36: 8.079276079e-14 | IM36: 6.562150201e-14 | IN36: 5.208003727e-14 | IO36: 3.980245712e-14 | IP36: 2.847258717e-14 | IQ36: 1.781164556e-14 | IR36: 7.578781456e-15
B37: A1+ | C37: =NORMSDIST((SQRT(Correl)*C35+Vol*SQRT(Maturity)+_nd2)/SQRT(1-Correl))*NORMSDIST((SQRT(Correl)+Correl*Vol*SQRT(Maturity)-Threshold)/SQRT(1-Correl)) -> 0.0001213055254 | D37: 0.0001216829697 | E37: 0.0001223647333 | F37: 0.0001233556436 | G37: 0.000124662538 | H37: 0.0001262944519 | I37: 0.0001282627234 | J37: 0.0001305811122 | K37: 0.0001332659431 | L37: 0.0001363362769 | M37: 0.00013981411 | N37: 0.0001437246064 | O37: 0.0001480963649 | P37: 0.0001529617237 | Q37: 0.0001583571082 | R37: 0.0001643234245 | S37: 0.0001709065043 | T37: 0.0001781576075 | U37: 0.000186133987 | V37: 0.0001948995245 | W37: 0.0002045254443 | X37: 0.000215091114 | Y37: 0.0002266849424 | Z37: 0.0002394053853 | AA37: 0.0002533620716 | AB37: 0.0002686770631 | AC37: 0.0002854862642 | AD37: 0.0003039409972 | AE37: 0.0003242097626 | AF37: 0.0003464802045 | AG37: 0.0003709613049 | AH37: 0.0003978858307 | AI37: 0.000427513062 | AJ37: 0.0004601318315 | AK37: 0.0004960639078 | AL37: 0.0005356677597 | AM37: 0.0005793427393 | AN37: 0.0006275337277 | AO37: 0.0006807362884 | AP37: 0.0007395023784 | AQ37: 0.00080444667 | AR37: 0.000876253539 | AS37: 0.0009556847815 | AT37: 0.00104358812 | AU37: 0.001140906566 | AV37: 0.001248688713 | AW37: 0.001368100021 | AX37: 0.001500435178 | AY37: 0.001647131601 | AZ37: 0.001809784157 | BA37: 0.001990161175 | BB37: 0.002190221816 | BC37: 0.00241213486 | BD37: 0.002658298978 | BE37: 0.00293136453 | BF37: 0.003234256912 | BG37: 0.003570201496 | BH37: 0.003942750137 | BI37: 0.004355809243 | BJ37: 0.004813669338 | BK37: 0.005321036051 | BL37: 0.005883062408 | BM37: 0.006505382243 | BN37: 0.007194144552 | BO37: =NORMSDIST((SQRT(Correl)*BO35+Vol*SQRT(Maturity)+_nd2)/SQRT(1-Correl))*NORMSDIST((SQRT(Correl)+Correl*Vol*SQRT(Maturity)-Threshold)/SQRT(1-Correl)) -> 0.007956048493 | BP37: 0.008798378723 | BQ37: 0.00972904069 | BR37: 0.01075659541 | BS37: 0.0118902932 | BT37: 0.01314010579 | BU37: 0.01451675607 | BV37: 0.0160317448 | BW37: 0.01769737332 | BX37: 0.01952676144 | BY37: 0.02153385951 | BZ37: 0.02373345357 | CA37: 0.02614116249 | CB37: 0.028773426 | CC37: 0.03164748239 | CD37: 0.03478133478 | CE37: 0.03819370475 | CF37: 0.04190397229 | CG37: 0.04593210102 | CH37: 0.05029854786 | CI37: 0.05502415631 | CJ37: 0.06013003291 | CK37: 0.06563740638 | CL37: 0.0715674696 | CM37: 0.07794120448 | CN37: 0.08477919036 | CO37: 0.09210139701 | CP37: 0.09992696331 | CQ37: 0.1082739637 | CR37: 0.117159164 | CS37: 0.1265977703 | CT37: 0.1366031722 | CU37: 0.1471866858 | CV37: 0.1583572984 | CW37: 0.1701214202 | CX37: 0.1824826463 | CY37: 0.195441535 | CZ37: 0.2089954045 | DA37: 0.2231381557 | DB37: 0.2378601217 | DC37: 0.2531479528 | DD37: 0.268984536 | DE37: 0.2853489568 | DF37: 0.3022165027 | DG37: 0.3195587132 | DH37: 0.3373434761 | DI37: 0.3555351721 | DJ37: 0.3740948655 | DK37: 0.3929805429 | DL37: 0.4121473949 | DM37: 0.4315481396 | DN37: 0.4511333836 | DO37: 0.4708520158 | DP37: 0.4906516286 | DQ37: 0.5104789605 | DR37: 0.5302803541 | DS37: 0.550002221 | DT37: 0.5695915093 | DU37: 0.5889961629 | DV37: 0.608165569 | DW37: 0.6270509845 | DX37: 0.6456059364 | DY37: 0.6637865896 | DZ37: 0.6815520769 | EA37: =NORMSDIST((SQRT(Correl)*EA35+Vol*SQRT(Maturity)+_nd2)/SQRT(1-Correl))*NORMSDIST((SQRT(Correl)+Correl*Vol*SQRT(Maturity)-Threshold)/SQRT(1-Correl)) -> 0.6988647879 | EB37: 0.7156906121 | EC37: 0.7319991335 | ED37: 0.7477637771 | EE37: 0.7629619042 | EF37: 0.7775748584 | EG37: 0.7915879631 | EH37: 0.8049904726 | EI37: 0.8177754796 | EJ37: 0.829939783 | EK37: 0.8414837194 | EL37: 0.8524109634 | EM37: 0.8627283013 | EN37: 0.8724453833 | EO37: 0.8815744587 | EP37: 0.8901301001 | EQ37: 0.8981289207 | ER37: 0.9055892893 | ES37: 0.9125310479 | ET37: 0.9189752351 | EU37: 0.924943819 | EV37: 0.9304594428 | EW37: 0.9355451852 | EX37: 0.9402243382 | EY37: 0.9445202027 | EZ37: 0.9484559044 | FA37: 0.952054229 | FB37: 0.9553374786 | FC37: 0.9583273478 | FD37: 0.9610448187 | FE37: 0.9635100764 | FF37: 0.965742441 | FG37: 0.9677603165 | FH37: 0.9695811555 | FI37: 0.971221438 | FJ37: 0.9726966617 | FK37: 0.9740213446 | FL37: 0.9752090366 | FM37: 0.9762723392 | FN37: 0.9772229324 | FO37: 0.9780716074 | FP37: 0.9788283026 | FQ37: 0.9795021448 | FR37: 0.9801014908 | FS37: 0.980633972 | FT37: 0.9811065389 | FU37: 0.9815255062 | FV37: 0.981896597 | FW37: 0.9822249866 | FX37: 0.9825153441 | FY37: 0.9827718739 | FZ37: 0.9829983534 | GA37: 0.9831981706 | GB37: 0.9833743582 | GC37: 0.9835296266 | GD37: 0.9836663938 | GE37: 0.9837868134 | GF37: 0.9838928012 | GG37: 0.9839860586 | GH37: 0.9840680948 | GI37: 0.9841402469 | GJ37: 0.9842036976 | GK37: 0.9842594928 | GL37: 0.9843085557 | GM37: =NORMSDIST((SQRT(Correl)*GM35+Vol*SQRT(Maturity)+_nd2)/SQRT(1-Correl))*NORMSDIST((SQRT(Correl)+Correl*Vol*SQRT(Maturity)-Threshold)/SQRT(1-Correl)) -> 0.9843517006 | GN37: 0.9843896454 | GO37: 0.9844230223 | GP37: 0.9844523874 | GQ37: 0.9844782299 | GR37: 0.9845009797 | GS37: 0.9845210146 | GT37: 0.9845386659 | GU37: 0.9845542247 | GV37: 0.9845679461 | GW37: 0.9845800542 | GX37: 0.9845907451 | GY37: 0.984600191 | GZ37: 0.9846085427 | HA37: 0.9846159324 | HB37: 0.9846224761 | HC37: 0.9846282752 | HD37: 0.9846334189 | HE37: 0.9846379852 | HF37: 0.9846420427 | HG37: 0.9846456513 | HH37: 0.9846488638 | HI37: 0.9846517263 | HJ37: 0.9846542796 | HK37: 0.9846565592 | HL37: 0.9846585965 | HM37: 0.9846604191 | HN37: 0.9846620512 | HO37: 0.984663514 | HP37: 0.9846648265 | HQ37: 0.984666005 | HR37: 0.9846670642 | HS37: 0.984668017 | HT37: 0.9846688747 | HU37: 0.9846696472 | HV37: 0.9846703435 | HW37: 0.9846709714 | HX37: 0.9846715377 | HY37: 0.9846720487 | HZ37: 0.9846725097 | IA37: 0.9846729254 | IB37: 0.9846733002 | IC37: 0.9846736378 | ID37: 0.9846739415 | IE37: 0.9846742142 | IF37: 0.9846744585 | IG37: 0.9846746767 | IH37: 0.9846748707 | II37: 0.9846750425 | IJ37: 0.9846751934 | IK37: 0.9846753248 | IL37: 0.9846754379 | IM37: 0.9846755335 | IN37: 0.9846756126 | IO37: 0.9846756758 | IP37: 0.9846757237 | IQ37: 0.9846757566 | IR37: 0.9846757747
B38: A2+ | C38: =NORMSDIST((SQRT(Correl)*C35+_nd2)/SQRT(1-Correl))*NORMSDIST((SQRT(Correl)-Threshold)/SQRT(1-Correl)) -> 3.761891798e-05 | D38: 3.774419543e-05 | E38: 3.797055217e-05 | F38: 3.82997168e-05 | G38: 3.873414515e-05 | H38: 3.927708708e-05 | I38: 3.993262699e-05 | J38: 4.070573089e-05 | K38: 4.16023034e-05 | L38: 4.262925561e-05 | M38: 4.379458506e-05 | N38: 4.510746887e-05 | O38: 4.657837138e-05 | P38: 4.821916788e-05 | Q38: 5.00432861e-05 | R38: 5.20658676e-05 | S38: 5.430395131e-05 | T38: 5.677668187e-05 | U38: 5.950554582e-05 | V38: 6.251463894e-05 | W38: 6.583096874e-05 | X38: 6.948479643e-05 | Y38: 7.351002323e-05 | Z38: 7.794462678e-05 | AA38: 8.283115382e-05 | AB38: 8.821727631e-05 | AC38: 9.415641899e-05 | AD38: 0.0001007084674 | AE38: 0.0001079405664 | AF38: 0.0001159280209 | AG38: 0.0001247553108 | AH38: 0.0001345172352 | AI38: 0.0001453202018 | AJ38: 0.0001572836778 | AK38: 0.0001705418253 | AL38: 0.000185245339 | AM38: 0.0002015635153 | AN38: 0.0002196865762 | AO38: 0.0002398282801 | AP38: 0.0002622288526 | AQ38: 0.0002871582731 | AR38: 0.0003149199579 | AS38: 0.0003458548828 | AT38: 0.000380346195 | AU38: 0.0004188243643 | AV38: 0.0004617729306 | AW38: 0.0005097349094 | AX38: 0.000563319919 | AY38: 0.0006232121001 | AZ38: 0.0006901789013 | BA38: 0.000765080808 | BB38: 0.0008488820967 | BC38: 0.0009426626985 | BD38: 0.00104763126 | BE38: 0.001165139485 | BF38: 0.001296697856 | BG38: 0.001443992804 | BH38: 0.001608905432 | BI38: 0.001793531848 | BJ38: 0.002000205194 | BK38: 0.002231519421 | BL38: 0.002490354853 | BM38: 0.002779905567 | BN38: 0.003103708595 | BO38: =NORMSDIST((SQRT(Correl)*BO35+_nd2)/SQRT(1-Correl))*NORMSDIST((SQRT(Correl)-Threshold)/SQRT(1-Correl)) -> 0.003465674916 | BP38: 0.003870122179 | BQ38: 0.004321809062 | BR38: 0.004825971129 | BS38: 0.00538835798 | BT38: 0.006015271455 | BU38: 0.006713604566 | BV38: 0.007490880778 | BW38: 0.008355293183 | BX38: 0.009315743013 | BY38: 0.01038187687 | BZ38: 0.01156412195 | CA38: 0.01287371849 | CB38: 0.01432274846 | CC38: 0.01592415959 | CD38: 0.01769178366 | CE38: 0.01964034787 | CF38: 0.02178547809 | CG38: 0.02414369274 | CH38: 0.0267323861 | CI38: 0.0295697996 | CJ38: 0.03267497993 | CK38: 0.03606772275 | CL38: 0.03976850077 | CM38: 0.04379837529 | CN38: 0.04817889031 | CO38: 0.0529319485 | CP38: 0.05807966865 | CQ38: 0.06364422457 | CR38: 0.06964766549 | CS38: 0.07611171861 | CT38: 0.08305757481 | CU38: 0.09050565884 | CV38: 0.09847538586 | CW38: 0.1069849067 | CX38: 0.1160508442 | CY38: 0.1256880249 | CZ38: 0.135909208 | DA38: 0.146724817 | DB38: 0.1581426779 | DC38: 0.1701677681 | DD38: 0.1828019817 | DE38: 0.1960439144 | DF38: 0.2098886743 | DG38: 0.2243277234 | DH38: 0.2393487518 | DI38: 0.254935592 | DJ38: 0.2710681742 | DK38: 0.2877225267 | DL38: 0.3048708233 | DM38: 0.3224814797 | DN38: 0.3405192985 | DO38: 0.3589456633 | DP38: 0.3777187801 | DQ38: 0.3967939645 | DR38: 0.4161239702 | DS38: 0.4356593561 | DT38: 0.4553488866 | DU38: 0.4751399586 | DV38: 0.4949790511 | DW38: 0.5148121878 | DX38: 0.5345854082 | DY38: 0.554245239 | DZ38: 0.5737391572 | EA38: =NORMSDIST((SQRT(Correl)*EA35+_nd2)/SQRT(1-Correl))*NORMSDIST((SQRT(Correl)-Threshold)/SQRT(1-Correl)) -> 0.5930160408 | EB38: 0.6120265971 | EC38: 0.6307237646 | ED38: 0.6490630813 | EE38: 0.6670030157 | EF38: 0.6845052548 | EG38: 0.701534947 | EH38: 0.7180608971 | EI38: 0.7340557118 | EJ38: 0.749495896 | EK38: 0.7643618991 | EL38: 0.7786381141 | EM38: 0.7923128311 | EN38: 0.8053781473 | EO38: 0.8178298391 | EP38: 0.829667198 | EQ38: 0.8408928368 | ER38: 0.851512469 | ES38: 0.8615346682 | ET38: 0.8709706107 | EU38: 0.8798338072 | EV38: 0.888139828 | EW38: 0.8959060258 | EX38: 0.9031512612 | EY38: 0.909895633 | EZ38: 0.9161602184 | FA38: 0.9219668245 | FB38: 0.9273377545 | FC38: 0.9322955894 | FD38: 0.9368629883 | FE38: 0.9410625059 | FF38: 0.9449164308 | FG38: 0.9484466413 | FH38: 0.9516744821 | FI38: 0.9546206585 | FJ38: 0.9573051494 | FK38: 0.9597471368 | FL38: 0.9619649518 | FM38: 0.9639760354 | FN38: 0.9657969123 | FO38: 0.9674431775 | FP38: 0.9689294935 | FQ38: 0.9702695968 | FR38: 0.9714763128 | FS38: 0.9725615776 | FT38: 0.9735364649 | FU38: 0.9744112187 | FV38: 0.9751952884 | FW38: 0.9758973671 | FX38: 0.9765254313 | FY38: 0.9770867826 | FZ38: 0.9775880887 | GA38: 0.9780354248 | GB38: 0.9784343148 | GC38: 0.9787897707 | GD38: 0.9791063315 | GE38: 0.9793881 | GF38: 0.9796387787 | GG38: 0.9798617026 | GH38: 0.9800598714 | GI38: 0.9802359793 | GJ38: 0.9803924423 | GK38: 0.9805314241 | GL38: 0.9806548604 | GM38: =NORMSDIST((SQRT(Correl)*GM35+_nd2)/SQRT(1-Correl))*NORMSDIST((SQRT(Correl)-Threshold)/SQRT(1-Correl)) -> 0.9807644805 | GN38: 0.9808618278 | GO38: 0.9809482783 | GP38: 0.9810250575 | GQ38: 0.9810932562 | GR38: 0.9811538443 | GS38: 0.9812076834 | GT38: 0.9812555389 | GU38: 0.9812980896 | GV38: 0.9813359378 | GW38: 0.9813696175 | GX38: 0.9813996016 | GY38: 0.9814263092 | GZ38: 0.9814501114 | HA38: 0.9814713366 | HB38: 0.9814902757 | HC38: 0.981507186 | HD38: 0.9815222951 | HE38: 0.9815358047 | HF38: 0.981547893 | HG38: 0.9815587178 | HH38: 0.9815684188 | HI38: 0.9815771197 | HJ38: 0.9815849298 | HK38: 0.9815919461 | HL38: 0.9815982545 | HM38: 0.981603931 | HN38: 0.981609043 | HO38: 0.9816136504 | HP38: 0.9816178061 | HQ38: 0.9816215571 | HR38: 0.9816249453 | HS38: 0.9816280076 | HT38: 0.9816307771 | HU38: 0.981633283 | HV38: 0.9816355512 | HW38: 0.981637605 | HX38: 0.9816394649 | HY38: 0.9816411492 | HZ38: 0.9816426741 | IA38: 0.9816440542 | IB38: 0.9816453024 | IC38: 0.98164643 | ID38: 0.9816474473 | IE38: 0.9816483633 | IF38: 0.981649186 | IG38: 0.9816499225 | IH38: 0.981650579 | II38: 0.9816511611 | IJ38: 0.9816516735 | IK38: 0.9816521204 | IL38: 0.9816525054 | IM38: 0.9816528316 | IN38: 0.9816531017 | IO38: 0.9816533176 | IP38: 0.9816534812 | IQ38: 0.9816535936 | IR38: 0.9816536558
B39: A1- | C39: =NORMSDIST(-(SQRT(Correl)*C35+Vol*SQRT(Maturity)+_nd2)/SQRT(1-Correl))*NORMSDIST((SQRT(Correl)*C35+Correl*Vol*SQRT(Maturity)-Threshold)/SQRT(1-Correl)) -> 0.007006601796 | D39: 0.007022118716 | E39: 0.007050108628 | F39: 0.007090704619 | G39: 0.00714409173 | H39: 0.007210512911 | I39: 0.007290270905 | J39: 0.007383730121 | K39: 0.007491318802 | L39: 0.00761353155 | M39: 0.007750932225 | N39: 0.007904157239 | O39: 0.008073919258 | P39: 0.008261011336 | Q39: 0.008466311476 | R39: 0.008690787671 | S39: 0.00893550341 | T39: 0.009201623692 | U39: 0.009490421551 | V39: 0.009803285135 | W39: 0.01014172533 | X39: 0.01050738397 | Y39: 0.01090204264 | Z39: 0.01132763213 | AA39: 0.01178624243 | AB39: 0.01228013346 | AC39: 0.0128117464 | AD39: 0.01338371569 | AE39: 0.01399888163 | AF39: 0.0146603037 | AG39: 0.01537127439 | AH39: 0.01613533375 | AI39: 0.01695628435 | AJ39: 0.01783820684 | AK39: 0.01878547587 | AL39: 0.01980277638 | AM39: 0.02089512013 | AN39: 0.02206786229 | AO39: 0.02332671801 | AP39: 0.02467777875 | AQ39: 0.02612752815 | AR39: 0.02768285724 | AS39: 0.02935107864 | AT39: 0.0311399395 | AU39: 0.03305763278 | AV39: 0.03511280642 | AW39: 0.03731457012 | AX39: 0.03967249898 | AY39: 0.04219663364 | AZ39: 0.0448974763 | BA39: 0.04778598188 | BB39: 0.05087354369 | BC39: 0.05417197287 | BD39: 0.05769347079 | BE39: 0.06145059361 | BF39: 0.06545620806 | BG39: 0.06972343778 | BH39: 0.07426559898 | BI39: 0.07909612494 | BJ39: 0.08422847813 | BK39: 0.08967604936 | BL39: 0.0954520431 | BM39: 0.1015693483 | BN39: 0.1080403941 | BO39: =NORMSDIST(-(SQRT(Correl)*BO35+Vol*SQRT(Maturity)+_nd2)/SQRT(1-Correl))*NORMSDIST((SQRT(Correl)*BO35+Correl*Vol*SQRT(Maturity)-Threshold)/SQRT(1-Correl)) -> 0.1148769902 | BP39: 0.1220901514 | BQ39: 0.1296899064 | BR39: 0.1376850914 | BS39: 0.1460831285 | BT39: 0.1548897904 | BU39: 0.1641089523 | BV39: 0.1737423326 | BW39: 0.183789226 | BX39: 0.1942462291 | BY39: 0.205106965 | BZ39: 0.2163618078 | CA39: 0.2279976138 | CB39: 0.239997463 | CC39: 0.252340417 | CD39: 0.2650012995 | CE39: 0.2779505054 | CF39: 0.2911538464 | CG39: 0.304572439 | CH39: 0.318162643 | CI39: 0.3318760579 | CJ39: 0.3456595829 | CK39: 0.3594555482 | CL39: 0.3732019222 | CM39: 0.3868326001 | CN39: 0.4002777769 | CO39: 0.4134644065 | CP39: 0.4263167473 | CQ39: 0.438756992 | CR39: 0.4507059787 | CS39: 0.4620839751 | CT39: 0.4728115287 | CU39: 0.4828103712 | CV39: 0.4920043643 | CW39: 0.5003204706 | CX39: 0.5076897334 | CY39: 0.5140482465 | CZ39: 0.519338094 | DA39: 0.5235082405 | DB39: 0.5265153514 | DC39: 0.5283245241 | DD39: 0.528909912 | DE39: 0.5282552259 | DF39: 0.5263540973 | DG39: 0.5232102957 | DH39: 0.5188377907 | DI39: 0.5132606554 | DJ39: 0.5065128129 | DK39: 0.4986376286 | DL39: 0.4896873572 | DM39: 0.4797224555 | DN39: 0.4688107768 | DO39: 0.4570266625 | DP39: 0.4444499532 | DQ39: 0.4311649387 | DR39: 0.4172592688 | DS39: 0.4028228492 | DT39: 0.3879467422 | DU39: 0.3727220938 | DV39: 0.3572391069 | DW39: 0.3415860762 | DX39: 0.3258485012 | DY39: 0.3101082881 | DZ39: 0.2944430492 | EA39: =NORMSDIST(-(SQRT(Correl)*EA35+Vol*SQRT(Maturity)+_nd2)/SQRT(1-Correl))*NORMSDIST((SQRT(Correl)*EA35+Correl*Vol*SQRT(Maturity)-Threshold)/SQRT(1-Correl)) -> 0.2789255083 | EB39: 0.2636230126 | EC39: 0.2485971548 | ED39: 0.2339035011 | EE39: 0.2195914238 | EF39: 0.2057040311 | EG39: 0.1922781871 | EH39: 0.1793446151 | EI39: 0.166928073 | EJ39: 0.1550475925 | EK39: 0.1437167717 | EL39: 0.1329441105 | EM39: 0.1227333805 | EN39: 0.113084019 | EO39: 0.1039915386 | EP39: 0.09544794504 | EQ39: 0.08744215517 | ER39: 0.07996040977 | ES39: 0.07298667482 | ET39: 0.06650302703 | EU39: 0.06049001983 | EV39: 0.05492702664 | EW39: 0.04979255931 | EX39: 0.0450645602 | EY39: 0.04072066678 | EZ39: 0.03673844867 | FA39: 0.033095617 | FB39: 0.02977020681 | FC39: 0.02674073336 | FD39: 0.02398632353 | FE39: 0.02148682385 | FF39: 0.01922288664 | FG39: 0.0171760361 | FH39: 0.0153287162 | FI39: 0.01366432208 | FJ39: 0.01216721689 | FK39: 0.01082273596 | FL39: 0.009617179801 | FM39: 0.008537797904 | FN39: 0.007572764615 | FO39: 0.006711148734 | FP39: 0.005942878065 | FQ39: 0.005258700145 | FR39: 0.004650140227 | FS39: 0.004109457472 | FT39: 0.003629600161 | FU39: 0.003204160662 | FV39: 0.002827330734 | FW39: 0.00249385768 | FX39: 0.002199001741 | FY39: 0.001938495072 | FZ39: 0.001708502523 | GA39: 0.001505584416 | GB39: 0.001326661434 | GC39: 0.001168981683 | GD39: 0.001030089967 | GE39: 0.0009077992486 | GF39: 0.0008001642712 | GG39: 0.0007054572724 | GH39: 0.0006221457099 | GI39: 0.0005488719076 | GJ39: 0.0004844345178 | GK39: 0.0004277716912 | GL39: 0.0003779458419 | GM39: =NORMSDIST(-(SQRT(Correl)*GM35+Vol*SQRT(Maturity)+_nd2)/SQRT(1-Correl))*NORMSDIST((SQRT(Correl)*GM35+Correl*Vol*SQRT(Maturity)-Threshold)/SQRT(1-Correl)) -> 0.0003341298948 | GN39: 0.0002955949034 | GO39: 0.0002616989282 | GP39: 0.0002318770711 | GQ39: 0.0002056325644 | GR39: 0.0001825288192 | GS39: 0.0001621823427 | GT39: 0.0001442564419 | GU39: 0.0001284556346 | GV39: 0.0001145206966 | GW39: 0.0001022242788 | GX39: 9.136703424e-05 | GY39: 8.177419948e-05 | GZ39: 7.329258104e-05 | HA39: 6.578790157e-05 | HB39: 5.91424652e-05 | HC39: 5.325310552e-05 | HD39: 4.802938339e-05 | HE39: 4.339200556e-05 | HF39: 3.927143782e-05 | HG39: 3.56066895e-05 | HH39: 3.234424889e-05 | HI39: 2.943715103e-05 | HJ39: 2.684416196e-05 | HK39: 2.452906506e-05 | HL39: 2.24600368e-05 | HM39: 2.060910096e-05 | HN39: 1.895165145e-05 | HO39: 1.746603522e-05 | HP39: 1.613318765e-05 | HQ39: 1.493631393e-05 | HR39: 1.386061049e-05 | HS39: 1.289302162e-05 | HT39: 1.202202661e-05 | HU39: 1.123745377e-05 | HV39: 1.053031773e-05 | HW39: 9.89267723e-06 | HX39: 9.317510747e-06 | HY39: 8.798607686e-06 | HZ39: 8.330473228e-06 | IA39: 7.908245086e-06 | IB39: 7.527620691e-06 | IC39: 7.184793507e-06 | ID39: 6.87639734e-06 | IE39: 6.599457676e-06 | IF39: 6.351349165e-06 | IG39: 6.129758539e-06 | IH39: 5.93265229e-06 | II39: 5.758248581e-06 | IJ39: 5.604992886e-06 | IK39: 5.471536948e-06 | IL39: 5.356720709e-06 | IM39: 5.259556887e-06 | IN39: 5.179217965e-06 | IO39: 5.115025327e-06 | IP39: 5.066440345e-06 | IQ39: 5.033056866e-06 | IR39: 5.01459023e-06
B40: A2- | C40: =NORMSDIST(-(SQRT(Correl)*C35+_nd2)/SQRT(1-Correl))*NORMSDIST((SQRT(Correl)*C35-Threshold)/SQRT(1-Correl)) -> 0.005718379318 | D40: 0.00573134424 | E40: 0.005754732677 | F40: 0.005788659108 | G40: 0.005833282952 | H40: 0.005888813605 | I40: 0.00595551212 | J40: 0.00603369289 | K40: 0.006123725606 | L40: 0.006226037548 | M40: 0.006341116208 | N40: 0.006469512291 | O40: 0.006611843081 | P40: 0.006768796204 | Q40: 0.006941133813 | R40: 0.007129697192 | S40: 0.007335411825 | T40: 0.007559292926 | U40: 0.007802451481 | V40: 0.0080661008 | W40: 0.008351563615 | X40: 0.008660279746 | Y40: 0.008993814364 | Z40: 0.009353866855 | AA40: 0.009742280333 | AB40: 0.0101610518 | AC40: 0.01061234299 | AD40: 0.01109849189 | AE40: 0.01162202495 | AF40: 0.01218567001 | AG40: 0.01279236996 | AH40: 0.013445297 | AI40: 0.01414786768 | AJ40: 0.01490375849 | AK40: 0.01571692217 | AL40: 0.01659160443 | AM40: 0.01753236127 | AN40: 0.01854407659 | AO40: 0.0196319802 | AP40: 0.02080166583 | AQ40: 0.02205910925 | AR40: 0.02341068608 | AS40: 0.02486318929 | AT40: 0.02642384591 | AU40: 0.02810033287 | AV40: 0.02990079147 | AW40: 0.03183384024 | AX40: 0.03390858566 | AY40: 0.03613463042 | AZ40: 0.03852207852 | BA40: 0.04108153687 | BB40: 0.0438241126 | BC40: 0.04676140557 | BD40: 0.04990549529 | BE40: 0.05326892152 | BF40: 0.05686465788 | BG40: 0.06070607747 | BH40: 0.06480690987 | BI40: 0.0691811885 | BJ40: 0.07384318757 | BK40: 0.07880734781 | BL40: 0.08408819 | BM40: 0.08970021574 | BN40: 0.09565779448 | BO40: =NORMSDIST(-(SQRT(Correl)*BO35+_nd2)/SQRT(1-Correl))*NORMSDIST((SQRT(Correl)*BO35-Threshold)/SQRT(1-Correl)) -> 0.1019750365 | BP40: 0.1086656508 | BQ40: 0.1157427886 | BR40: 0.1232188703 | BS40: 0.1311053982 | BT40: 0.1394127538 | BU40: 0.1481499798 | BV40: 0.1573245496 | BW40: 0.1669421228 | BX40: 0.1770062906 | BY40: 0.1875183117 | BZ40: 0.198476842 | CA40: 0.2098776594 | CB40: 0.2217133899 | CC40: 0.2339732359 | CD40: 0.2466427133 | CE40: 0.2597034012 | CF40: 0.2731327105 | CG40: 0.2869036759 | CH40: 0.3009847793 | CI40: 0.3153398093 | CJ40: 0.3299277651 | CK40: 0.34470281 | CL40: 0.3596142826 | CM40: 0.3746067705 | CN40: 0.3896202533 | CO40: 0.4045903201 | CP40: 0.4194484641 | CQ40: 0.4341224595 | CR40: 0.4485368203 | CS40: 0.4626133418 | CT40: 0.4762717232 | CU40: 0.4894302657 | CV40: 0.5020066428 | CW40: 0.5139187314 | CX40: 0.5250854964 | CY40: 0.5354279145 | CZ40: 0.5448699226 | DA40: 0.5533393772 | DB40: 0.5607690043 | DC40: 0.5670973241 | DD40: 0.5722695301 | DE40: 0.5762383053 | DF40: 0.5789645557 | DG40: 0.5804180456 | DH40: 0.5805779188 | DI40: 0.5794330922 | DJ40: 0.5769825117 | DK40: 0.573235264 | DL40: 0.5682105376 | DM40: 0.5619374356 | DN40: 0.5544546407 | DO40: 0.5458099408 | DP40: 0.5360596229 | DQ40: 0.5252677504 | DR40: 0.5135053372 | DS40: 0.5008494369 | DT40: 0.487382166 | DU40: 0.4731896805 | DV40: 0.4583611272 | DW40: 0.4429875889 | DX40: 0.4271610424 | DY40: 0.4109733492 | DZ40: 0.3945152933 | EA40: =NORMSDIST(-(SQRT(Correl)*EA35+_nd2)/SQRT(1-Correl))*NORMSDIST((SQRT(Correl)*EA35-Threshold)/SQRT(1-Correl)) -> 0.3778756809 | EB40: 0.3611405158 | EC40: 0.3443922575 | ED40: 0.3277091718 | EE40: 0.3111647762 | EF40: 0.2948273859 | EG40: 0.2787597564 | EH40: 0.2630188249 | EI40: 0.2476555446 | EJ40: 0.2327148069 | EK40: 0.2182354471 | EL40: 0.2042503243 | EM40: 0.1907864685 | EN40: 0.1778652867 | EO40: 0.1655028192 | EP40: 0.153710038 | EQ40: 0.1424931778 | ER40: 0.1318540932 | ES40: 0.1217906329 | ET40: 0.112297025 | EU40: 0.1033642666 | EV40: 0.09498051102 | EW40: 0.08713144887 | EX40: 0.07980067773 | EY40: 0.07297005657 | EZ40: 0.06662004219 | FA40: 0.06073000493 | FB40: 0.05527852194 | FC40: 0.05024364658 | FD40: 0.04560315323 | FE40: 0.0413347572 | FF40: 0.03741630979 | FG40: 0.03382596897 | FH40: 0.0305423464 | FI40: 0.02754463199 | FJ40: 0.02481269694 | FK40: 0.02232717689 | FL40: 0.02006953663 | FM40: 0.01802211786 | FN40: 0.01616817175 | FO40: 0.01449187783 | FP40: 0.01297835086 | FQ40: 0.01161363728 | FR40: 0.01038470267 | FS40: 0.009279411594 | FT40: 0.008286501347 | FU40: 0.007395550548 | FV40: 0.006596943923 | FW40: 0.005881834144 | FX40: 0.005242101674 | FY40: 0.004670313377 | FZ40: 0.004159680587 | GA40: 0.003704017213 | GB40: 0.003297698366 | GC40: 0.002935619918 | GD40: 0.002613159312 | GE40: 0.002326137886 | GF40: 0.002070784895 | GG40: 0.001843703377 | GH40: 0.001641837945 | GI40: 0.001462444559 | GJ40: 0.001303062281 | GK40: 0.001161487013 | GL40: 0.001035747169 | GM40: =NORMSDIST(-(SQRT(Correl)*GM35+_nd2)/SQRT(1-Correl))*NORMSDIST((SQRT(Correl)*GM35-Threshold)/SQRT(1-Correl)) -> 0.0009240812158 | GN40: 0.0008249170296 | GO40: 0.0007368529671 | GP40: 0.0006586405695 | GQ40: 0.0005891688013 | GR40: 0.0005274497258 | GS40: 0.0004726055189 | GT40: 0.0004238567237 | GU40: 0.0003805116502 | GV40: 0.0003419568281 | GW40: 0.0003076484246 | GX40: 0.0002771045433 | GY40: 0.0002498983252 | GZ40: 0.0002256517781 | HA40: 0.0002040302649 | HB40: 0.0001847375886 | HC40: 0.0001675116124 | HD40: 0.0001521203635 | HE40: 0.0001383585698 | HF40: 0.0001260445842 | HG40: 0.0001150176566 | HH40: 0.000105135515 | HI40: 9.627222329e-05 | HJ40: 8.831628494e-05 | HK40: 8.116896547e-05 | HL40: 7.47428092e-05 | HM40: 6.896032848e-05 | HN40: 6.375284584e-05 | HO40: 5.905947147e-05 | HP40: 5.482620073e-05 | HQ40: 5.100511755e-05 | HR40: 4.755369164e-05 | HS40: 4.443415847e-05 | HT40: 4.161297248e-05 | HU40: 3.906032471e-05 | HV40: 3.674971759e-05 | HW40: 3.465758987e-05 | HX40: 3.276298607e-05 | HY40: 3.104726493e-05 | HZ40: 2.949384256e-05 | IA40: 2.808796599e-05 | IB40: 2.681651371e-05 | IC40: 2.566781992e-05 | ID40: 2.463151992e-05 | IE40: 2.369841405e-05 | IF40: 2.286034808e-05 | IG40: 2.211010828e-05 | IH40: 2.144132951e-05 | II40: 2.084841475e-05 | IJ40: 2.032646518e-05 | IK40: 1.98712193e-05 | IL40: 1.947900056e-05 | IM40: 1.914667242e-05 | IN40: 1.887160031e-05 | IO40: 1.865161977e-05 | IP40: 1.84850102e-05 | IQ40: 1.837047244e-05 | IR40: 1.830709358e-05
C42: Call | D42: Put
B43: A1 | C43: =SUMPRODUCT(C36:IR36,C37:IR37) -> 0.6177979982 | D43: =SUMPRODUCT(C36:IR36,C39:IR39) -> 0.3254844597
B44: A2 | C44: =SUMPRODUCT(C36:IR36,C38:IR38) -> 0.5201805742 | D44: =SUMPRODUCT(C36:IR36,C40:IR40) -> 0.4084609498
